bitfinex/quotes_ETHUSD_20220227
["timestamp","ask_amount","ask_price","bid_price","bid_amount"]
[1645952910962,0.00096,2745.0,2744.6,11.68224917]
[1645952911163,0.00096,2745.3,2744.8,11.68224917]
[1645952911358,1.7079,2745.6,2745.0,0.56224917]
[1645952911359,0.00096,2745.5,2745.0,0.56224917]
[1645952911560,0.5,2745.6,2745.2,0.56224917]
[1645952911805,1.10100857,2745.0,2744.3,0.25]
[1645952912008,1.10100857,2745.0,2744.3,0.775]
[1645952912009,3.8643,2744.9,2744.3,0.775]
[1645952912209,0.3643,2744.9,2744.3,0.525]
[1645952912604,0.3643,2744.9,2744.4,0.5]
[1645952912811,0.3643,2744.9,2744.3,0.525]
[1645952912812,4.2959,2744.9,2744.3,0.525]
[1645952913209,1.33315376,2744.5,2744.3,0.825]
[1645952913609,1.33315376,2744.5,2744.3,0.525]
[1645952913814,1.33315376,2744.5,2744.0,0.825]
[1645952915952,0.83275376,2744.5,2744.0,0.825]
[1645952916760,0.83275376,2744.5,2743.6,0.93121859]
[1645952916761,0.3643,2744.3,2743.6,0.75]
[1645952916961,0.3643,2744.1,2743.6,0.5]
[1645952917357,4.0411,2744.1,2743.0,0.525]
[1645952917558,0.00096,2744.0,2743.0,0.525]
[1645952917758,1.06760177,2743.3,2743.0,0.525]
[1645952918361,2.34316,2743.8,2743.2,5.0]
[1645952918362,0.00096,2743.8,2743.2,5.0]
[1645952918660,0.00096,2744.0,2743.5,6.562]
[1645952918967,3.6768,2744.1,2743.6,0.525]
[1645952919208,3.6768,2744.1,2743.6,1.00508108]
[1645952919408,4.84655316,2744.1,2743.7,0.18008108]
[1645952919609,4.84655316,2744.1,2743.8,0.525]
[1645952919809,4.84655316,2744.1,2743.8,0.825]
[1645952920011,3.6768,2744.1,2743.8,1.00508108]
[1645952921413,3.6768,2744.1,2743.8,1.91613108]
[1645952921615,3.6768,2744.1,2743.8,2.07177224]
[1645952921815,3.6768,2744.1,2743.8,1.91613108]
[1645952922416,3.6768,2744.1,2743.8,2.08199823]
[1645952922615,3.6768,2744.1,2743.8,1.91613108]
[1645952922816,3.6768,2744.1,2743.8,1.00508108]
[1645952925750,3.6268,2744.1,2743.8,4.64920528]
[1645952926150,3.6268,2744.1,2743.8,6.14990071]
[1645952926353,3.6268,2744.1,2743.8,5.94920528]
[1645952926810,3.6268,2744.1,2743.9,11.12]
[1645952927011,3.6268,2744.1,2744.0,11.645]
[1645952927210,3.6268,2744.1,2744.0,11.945]
[1645952927409,3.6268,2744.1,2744.0,12.945]
[1645952932062,3.6268,2744.1,2744.0,19.84914857]
[1645952932356,2.7807,2744.9,2744.1,7.0]
[1645952932357,0.00096,2744.8,2744.1,7.0]
[1645952932558,2.7807,2744.9,2744.2,18.207]
[1645952932758,0.00096,2744.8,2744.5,11.12]
[1645952932959,0.00096,2745.0,2744.7,11.12]
[1645952933157,0.63912491,2745.1,2744.8,11.645]
[1645952933360,0.63912491,2745.1,2744.9,0.525]
[1645952933558,0.63912491,2745.1,2745.0,0.525]
[1645952934058,0.63912491,2745.1,2745.0,11.945]
[1645952934317,0.63912491,2745.1,2745.0,12.945]
[1645952935117,0.63912491,2745.1,2745.0,1.825]
[1645952935419,0.63912491,2745.1,2745.0,0.825]
[1645952937018,0.63912491,2745.1,2745.0,0.225]
[1645952937227,0.63912491,2745.1,2744.4,1.0]
[1645952937228,4.50342491,2745.1,2744.4,1.0]
[1645952937422,1.00342491,2745.1,2744.5,0.3]
[1645952937720,0.3643,2744.9,2744.3,0.825]
[1645952937958,3.8643,2744.9,2744.3,0.825]
[1645952938147,0.3643,2744.9,2744.3,0.825]
[1645952938549,0.3643,2744.9,2744.0,0.25]
[1645952938749,4.28482491,2745.1,2743.8,0.525]
[1645952938750,0.3643,2744.7,2743.8,0.525]
[1645952938948,0.3643,2744.5,2743.8,0.525]
[1645952939548,0.3643,2744.3,2743.8,0.525]
[1645952939753,0.3643,2744.3,2743.8,0.825]
[1645952940152,0.3643,2744.3,2743.8,0.525]
[1645952941155,3.8643,2744.3,2743.8,0.525]
[1645952941456,0.3643,2744.3,2743.8,0.825]
[1645952942107,1.37616333,2743.9,2743.8,0.825]
[1645952942314,0.00096,2744.4,2743.8,0.825]
[1645952942508,1.90395548,2744.5,2743.8,0.825]
[1645952942709,0.3643,2744.3,2743.8,0.825]
[1645952943608,0.3643,2744.5,2743.8,0.825]
[1645952943909,0.3643,2744.5,2743.8,0.525]
[1645952944109,0.3643,2744.3,2743.8,0.525]
[1645952945110,0.3643,2744.2,2743.8,0.525]
[1645952945316,1.67706424,2744.1,2743.8,0.525]
[1645952945949,1.31276424,2744.1,2743.8,0.525]
[1645952946956,0.00096,2744.6,2744.0,11.12]
[1645952947157,2.3433,2744.8,2744.3,10.562]
[1645952947355,1.76736446,2744.8,2744.6,11.12]
[1645952947557,1.76736446,2744.8,2744.7,11.645]
[1645952947754,1.76736446,2744.8,2744.7,12.645]
[1645952947955,0.63912491,2745.1,2744.7,12.645]
[1645952948155,0.63912491,2745.1,2744.7,16.2906]
[1645952948455,0.63912491,2745.1,2744.7,23.52948692]
[1645952948654,0.63912491,2745.1,2744.9,11.12]
[1645952948855,0.63912491,2745.1,2745.0,11.645]
[1645952949297,0.63912491,2745.1,2745.0,16.445]
[1645952949704,0.63912491,2745.1,2745.0,17.53572108]
[1645952949903,0.63912491,2745.1,2745.0,24.29618467]
[1645952950108,0.63912491,2745.1,2745.0,9.06388692]
[1645952950305,0.63912491,2745.1,2745.0,8.56708108]
[1645952950506,0.63912491,2745.1,2745.0,9.06505227]
[1645952950708,0.63912491,2745.1,2745.0,8.56708108]
[1645952951006,0.63912491,2745.1,2745.0,8.387]
[1645952952210,0.63912491,2745.1,2745.0,8.88484349]
[1645952952611,0.63912491,2745.1,2745.0,8.387]
[1645952957105,0.63912491,2745.1,2745.0,11.887]
[1645952957305,0.63912491,2745.1,2745.0,23.91763]
[1645952957506,0.63912491,2745.1,2745.0,24.4151978]
[1645952957717,0.00096,2745.6,2745.1,0.20804267]
[1645952957905,2.1616,2745.7,2745.5,11.12]
[1645952958107,2.1616,2745.7,2745.6,4.025]
[1645952958407,1.26399362,2745.9,2745.6,0.825]
[1645952958607,3.1823,2746.3,2745.6,1.825]
[1645952958808,1.53970596,2746.2,2745.6,0.825]
[1645952959006,0.00096,2746.3,2745.6,0.825]
[1645952959206,0.00096,2746.3,2745.6,11.945]
[1645952959207,1.53971392,2746.3,2745.6,11.945]
[1645952959607,1.53971392,2746.3,2745.8,11.12]
[1645952959608,2.8405528,2746.3,2745.8,11.12]
[1645952959807,2.0906,2746.4,2746.0,11.12]
[1645952960008,2.0906,2746.4,2746.2,11.12]
[1645952960211,2.0906,2746.4,2746.3,0.525]
[1645952960473,0.1456,2747.0,2746.3,15.145]
[1645952960474,0.14656,2747.0,2746.3,15.145]
[1645952960665,1.53845525,2746.9,2746.3,11.645]
[1645952960860,1.18415658,2746.7,2746.3,12.945]
[1645952961259,1.18415658,2746.7,2746.3,1.825]
[1645952961568,1.80287711,2746.6,2746.3,1.525]
[1645952961764,0.3643,2746.6,2746.3,0.525]
[1645952962061,0.3143,2746.6,2746.3,0.525]
[1645952963270,0.3143,2746.6,2745.7,12.12]
[1645952963466,0.31526,2746.6,2746.0,0.525]
[1645952963667,1.18415658,2746.7,2746.0,0.825]
[1645952964201,0.04243893,2747.1,2746.2,11.12]
[1645952964403,0.04243893,2747.1,2746.3,15.145]
[1645952964599,0.04243893,2747.1,2746.3,0.825]
[1645952964801,0.40673893,2747.1,2746.3,0.825]
[1645952965602,1.21104471,2746.7,2746.3,0.825]
[1645952965801,0.40673893,2747.1,2746.3,0.825]
[1645952966403,0.04243893,2747.1,2746.3,0.825]
[1645952966810,1.14753381,2746.6,2746.3,0.825]
[1645952968956,0.04243893,2747.1,2746.3,0.825]
[1645952969154,0.04121204,2746.7,2746.3,0.825]
[1645952969958,1.42614653,2746.7,2746.3,0.825]
[1645952971159,0.04121204,2746.7,2746.3,0.825]
[1645952971359,0.04121204,2746.7,2746.4,14.62]
[1645952971563,0.04121204,2746.7,2746.5,11.645]
[1645952971812,0.04121204,2746.7,2746.6,3.5]
[1645952972012,0.04121204,2746.7,2746.6,15.145]
[1645952972212,0.04121204,2746.7,2746.6,16.445]
[1645952972412,0.04121204,2746.7,2746.6,12.945]
[1645952972622,1.204e-05,2746.7,2746.6,16.98938108]
[1645952972816,1.8338,2747.6,2746.7,11.69699121]
[1645952972817,0.00096,2747.2,2746.7,11.69699121]
[1645952973013,0.00096,2747.5,2746.9,11.12]
[1645952973216,0.04206334,2747.5,2747.1,11.12]
[1645952973412,0.04206334,2747.5,2747.3,11.12]
[1645952973614,0.04206334,2747.5,2747.4,0.525]
[1645952974017,0.04206334,2747.5,2747.4,10.00430496]
[1645952974216,0.04206334,2747.5,2747.4,1.525]
[1645952974412,0.5,2747.6,2747.5,11.12]
[1645952974615,2.1746,2747.8,2747.5,11.645]
[1645952974616,1.70014969,2747.8,2747.5,11.645]
[1645952974814,1.70014969,2747.8,2747.5,12.645]
[1645952975113,1.70014969,2747.8,2747.5,1.0]
[1645952975114,0.3643,2747.7,2747.5,1.0]
[1645952975318,0.3643,2747.7,2747.4,0.6666]
[1645952975560,0.3643,2747.7,2747.4,0.3]
[1645952975868,0.3643,2747.7,2747.3,0.3]
[1645952976058,1.70014969,2747.8,2747.3,0.3]
[1645952976258,1.70014969,2747.8,2747.3,0.525]
[1645952977465,1.70014969,2747.8,2747.3,11.645]
[1645952977763,1.70014969,2747.8,2747.3,1.525]
[1645952977764,1.26726784,2747.6,2747.3,1.525]
[1645952978163,1.26726784,2747.6,2747.3,0.525]
[1645952979400,1.26726784,2747.6,2747.3,11.645]
[1645952979799,1.26726784,2747.6,2747.3,1.525]
[1645952980200,1.26726784,2747.6,2747.3,0.525]
[1645952980801,1.26726784,2747.6,2747.4,11.12]
[1645952981005,1.26726784,2747.6,2747.4,11.645]
[1645952981201,1.26726784,2747.6,2747.4,1.825]
[1645952981601,1.26726784,2747.6,2747.4,0.825]
[1645952982105,1.70014969,2747.8,2747.4,0.825]
[1645952982606,1.70014969,2747.8,2747.4,11.945]
[1645952982958,0.00096,2748.1,2747.4,0.825]
[1645952983152,0.5,2748.2,2747.6,0.3643]
[1645952983153,0.50096,2748.2,2747.6,0.3643]
[1645952983353,0.5,2748.2,2747.7,15.3098411]
[1645952983555,0.5,2748.2,2747.7,15.445]
[1645952983755,0.5,2748.2,2747.7,16.98938108]
[1645952983955,0.5,2748.2,2747.8,0.16621088]
[1645952984154,0.5,2748.2,2747.9,11.645]
[1645952984352,0.45,2748.2,2747.9,12.945]
[1645952985953,0.45,2748.2,2748.0,14.62]
[1645952986161,0.00096,2748.6,2748.2,11.12]
[1645952986354,0.00096,2748.8,2748.4,11.12]
[1645952986554,0.4496,2748.9,2748.2,0.3]
[1645952986555,0.4496,2748.9,2748.5,0.525]
[1645952986822,2.1949558,2748.7,2748.6,0.525]
[1645952987026,2.1949558,2748.7,2748.4,0.525]
[1645952987622,2.1949558,2748.7,2748.4,0.825]
[1645952988622,0.8876053,2748.7,2748.5,11.12]
[1645952988828,0.8876053,2748.7,2748.6,15.145]
[1645952989024,0.8876053,2748.7,2748.6,0.525]
[1645952989222,0.8876053,2748.7,2748.6,1.825]
[1645952989423,0.8876053,2748.7,2748.6,0.825]
[1645952989624,0.8876053,2748.7,2748.6,11.945]
[1645952989825,0.8876053,2748.7,2748.6,12.945]
[1645952990224,0.8876053,2748.7,2748.6,1.825]
[1645952990476,0.8876053,2748.7,2748.6,1.775]
[1645952990665,0.8876053,2748.7,2748.6,0.525]
[1645952990865,1.2519053,2748.7,2747.5,0.43008108]
[1645952991067,1.2519053,2748.7,2747.6,0.525]
[1645952991267,0.00096,2748.6,2747.6,0.525]
[1645952991470,1.34916828,2747.9,2747.6,0.525]
[1645952992369,1.34916828,2747.9,2747.3,0.525]
[1645952992370,1.71346828,2747.9,2747.3,0.525]
[1645952992569,1.71346828,2747.9,2746.9,0.25]
[1645952992570,1.1593595,2747.2,2747.0,1.6]
[1645952992770,1.1593595,2747.2,2747.0,0.3]
[1645952992970,1.1593595,2747.2,2746.9,1.825]
[1645952993269,1.1593595,2747.2,2746.9,1.03119172]
[1645952993469,1.1593595,2747.2,2746.9,0.825]
[1645952993771,6.28976,2748.2,2747.0,11.12]
[1645952993972,6.28976,2748.2,2747.1,0.525]
[1645952994408,0.1455,2748.1,2747.1,0.525]
[1645952994609,0.3643,2747.9,2747.1,0.525]
[1645952995910,0.3643,2747.9,2747.1,0.825]
[1645952996714,1.3533147,2747.4,2747.1,0.825]
[1645952998064,0.00096,2748.0,2747.1,11.945]
[1645952998463,0.00096,2748.0,2747.1,12.945]
[1645952999265,1.29189847,2747.6,2747.1,12.945]
[1645952999464,0.00096,2748.0,2747.1,12.945]
[1645953000865,0.00096,2748.0,2747.1,16.445]
[1645953001065,0.00096,2748.1,2747.2,0.18008108]
[1645953001267,0.00096,2748.1,2747.3,11.645]
[1645953001467,4.72086,2748.2,2747.3,0.525]
[1645953001704,2.89556,2748.2,2747.3,1.825]
[1645953001904,0.36526,2748.2,2747.3,0.825]
[1645953002708,0.3643,2748.1,2747.3,0.525]
[1645953003108,0.3643,2747.9,2747.3,0.525]
[1645953003708,1.20493553,2747.8,2747.3,0.525]
[1645953003909,1.56923553,2747.8,2747.3,0.525]
[1645953005958,1.56923553,2747.8,2746.9,0.525]
[1645953006155,0.00096,2747.7,2746.9,0.525]
[1645953006353,1.56923553,2747.8,2746.9,0.525]
[1645953006554,0.3643,2747.6,2746.9,0.525]
[1645953007159,0.3643,2747.6,2746.6,0.25]
[1645953007459,0.3643,2747.6,2746.3,0.525]
[1645953007460,0.3643,2747.4,2746.3,0.525]
[1645953007663,0.3643,2747.2,2746.0,0.775]
[1645953007859,6.6806502,2747.3,2746.0,0.25]
[1645953007860,0.3643,2747.0,2746.0,0.25]
[1645953008060,0.3643,2746.8,2746.0,0.25]
[1645953008259,0.3643,2746.8,2745.7,0.525]
[1645953008459,0.3643,2746.8,2745.7,0.0693]
[1645953009223,0.3643,2746.6,2745.7,0.0693]
[1645953010225,0.5099,2746.6,2745.7,0.0693]
[1645953011428,0.5099,2746.6,2745.1,11.71874775]
[1645953011628,1.16906582,2745.4,2745.2,11.645]
[1645953011831,1.16906582,2745.4,2745.2,12.645]
[1645953012236,1.16906582,2745.4,2745.2,1.525]
[1645953012634,1.16906582,2745.4,2745.2,0.525]
[1645953013862,1.16906582,2745.4,2745.2,11.645]
[1645953014068,1.16906582,2745.4,2745.2,0.525]
[1645953014461,1.16906582,2745.4,2745.2,0.0693]
[1645953014865,5.7793,2746.6,2745.2,0.0693]
[1645953015063,0.3643,2746.4,2745.2,0.0693]
[1645953015860,1.31104271,2745.7,2745.2,0.0693]
[1645953016269,1.31104271,2745.7,2745.2,0.3693]
[1645953016570,0.3643,2746.5,2745.2,0.3693]
[1645953017037,0.3643,2746.5,2745.2,11.4893]
[1645953017242,0.3643,2746.5,2745.2,15.9893]
[1645953017544,1.15499913,2746.0,2745.2,15.9893]
[1645953017939,1.15499913,2746.0,2745.2,1.3693]
[1645953018339,1.15499913,2746.0,2745.2,0.3693]
[1645953018540,1.15499913,2746.0,2745.2,3.8693]
[1645953019039,1.15499913,2746.0,2745.2,1.2136]
[1645953019240,0.3643,2746.5,2745.2,14.92]
[1645953019439,0.3643,2746.5,2745.3,0.525]
[1645953020243,1.32637557,2746.1,2745.3,0.525]
[1645953021055,0.3643,2746.5,2745.3,0.525]
[1645953021357,0.3643,2746.5,2745.5,11.12]
[1645953021557,0.3643,2746.5,2745.6,0.525]
[1645953021762,0.3643,2746.5,2745.6,0.825]
[1645953021960,2.3456,2746.6,2745.7,11.12]
[1645953022161,2.3456,2746.6,2745.8,0.525]
[1645953022362,1.1560913,2746.4,2745.8,0.525]
[1645953022561,1.1560913,2746.4,2745.8,0.825]
[1645953023063,1.7545,2747.1,2745.9,3.5]
[1645953023064,1.3902,2747.1,2745.9,3.5]
[1645953023263,1.2446,2747.1,2746.0,18.507]
[1645953023464,1.2446,2747.1,2746.2,11.12]
[1645953023664,1.2446,2747.1,2746.3,0.525]
[1645953023864,3.91276,2747.2,2746.3,15.145]
[1645953024063,1.31961563,2747.1,2746.3,15.445]
[1645953024317,1.31961563,2747.1,2746.3,12.945]
[1645953024517,1.31961563,2747.1,2746.3,1.825]
[1645953024716,1.31961563,2747.1,2746.3,0.825]
[1645953024916,1.31961563,2747.1,2746.3,11.945]
[1645953025322,1.31961563,2747.1,2746.3,12.945]
[1645953025519,3.91276,2747.2,2746.4,14.62]
[1645953025718,3.91276,2747.2,2746.5,0.525]
[1645953025719,2.04476,2747.2,2746.5,0.525]
[1645953026119,2.0438,2747.2,2746.5,0.825]
[1645953026318,2.0438,2747.2,2746.5,11.945]
[1645953026518,2.0438,2747.2,2746.5,15.445]
[1645953026718,2.0438,2747.2,2746.5,16.445]
[1645953026920,2.0438,2747.2,2746.5,13.2367]
[1645953027119,2.0438,2747.2,2746.7,11.12]
[1645953027322,2.0438,2747.2,2746.8,0.525]
[1645953027721,2.0438,2747.2,2746.8,4.025]
[1645953028000,2.0438,2747.2,2746.8,0.525]
[1645953028191,2.0438,2747.2,2746.8,1.525]
[1645953028391,2.0438,2747.2,2746.8,0.525]
[1645953029192,2.0438,2747.2,2746.8,4.025]
[1645953029391,2.0438,2747.2,2746.8,5.025]
[1645953029593,2.0438,2747.2,2746.8,1.525]
[1645953029792,2.0438,2747.2,2746.8,0.525]
[1645953030601,2.0438,2747.2,2746.8,4.025]
[1645953030795,2.0438,2747.2,2746.8,1.525]
[1645953031197,2.0438,2747.2,2746.8,0.525]
[1645953034324,2.4081,2747.2,2746.8,0.525]
[1645953035675,1.40690237,2746.9,2746.8,0.525]
[1645953036072,1.40690237,2746.9,2746.6,0.3]
[1645953036272,1.40690237,2746.9,2746.5,0.2917]
[1645953037276,1.77120237,2746.9,2746.5,0.2917]
[1645953038077,1.77120237,2746.9,2745.6,0.25]
[1645953038286,0.3643,2746.7,2745.6,0.25]
[1645953038476,0.3643,2746.5,2745.6,0.25]
[1645953038676,5.3643,2746.5,2745.4,0.525]
[1645953038877,0.3643,2746.3,2745.4,0.525]
[1645953039078,0.3643,2746.1,2745.3,0.2345]
[1645953039313,1.23430662,2745.4,2745.3,0.2345]
[1645953041420,0.3643,2746.2,2745.3,0.2345]
[1645953042023,3.1986,2746.3,2745.3,0.2345]
[1645953042223,3.5629,2746.3,2745.3,0.2345]
[1645953042427,3.5629,2746.3,2745.3,0.7595]
[1645953042428,3.4629,2746.3,2745.3,0.7595]
[1645953042824,3.4629,2746.3,2745.3,0.525]
[1645953043059,1.20461893,2745.9,2745.3,0.525]
[1645953044561,3.4629,2746.3,2745.3,0.525]
[1645953044761,3.0986,2746.3,2745.5,11.12]
[1645953044961,1.9618,2746.3,2745.7,11.12]
[1645953045162,1.9618,2746.3,2745.8,15.145]
[1645953045363,1.9618,2746.3,2745.8,15.88473626]
[1645953045661,1.9618,2746.3,2745.9,0.18008108]
[1645953045961,1.9618,2746.3,2746.0,0.525]
[1645953046164,1.9618,2746.3,2746.0,0.825]
[1645953047420,1.9618,2746.3,2746.0,0.525]
[1645953048826,0.3643,2746.2,2745.4,1.0]
[1645953049120,0.3643,2746.2,2745.6,0.525]
[1645953049321,0.3643,2746.2,2745.6,0.825]
[1645953049921,1.2579637,2745.7,2745.6,0.825]
[1645953050321,1.2579637,2745.7,2745.6,0.525]
[1645953051169,0.3643,2746.2,2745.6,0.525]
[1645953052576,1.1267585,2745.8,2745.6,0.525]
[1645953052975,1.9618,2746.3,2745.6,0.525]
[1645953053378,1.9618,2746.3,2745.6,0.825]
[1645953053777,1.9618,2746.3,2745.6,0.775]
[1645953055021,3.0086174,2746.3,2745.7,3.5]
[1645953055220,3.0086174,2746.3,2745.8,0.825]
[1645953058259,3.0086174,2746.3,2745.8,0.525]
[1645953059763,1.9618,2746.3,2745.8,0.525]
[1645953059964,1.9618,2746.3,2745.8,0.825]
[1645953060167,1.9618,2746.3,2745.8,0.525]
[1645953060366,1.9618,2746.3,2745.8,0.825]
[1645953060666,1.9618,2746.3,2745.8,0.525]
[1645953061465,1.12020545,2746.0,2745.8,0.525]
[1645953061719,1.9618,2746.3,2745.8,0.525]
[1645953063720,1.43991136,2746.2,2745.8,0.525]
[1645953065462,1.43991136,2746.2,2745.9,0.5]
[1645953065660,1.43991136,2746.2,2745.8,0.0696]
[1645953068769,1.43991136,2746.2,2745.3,12.12]
[1645953068967,1.43991136,2746.2,2745.4,0.525]
[1645953069225,1.9618,2746.3,2745.7,11.12]
[1645953069427,1.9618,2746.3,2745.9,11.12]
[1645953069622,1.9618,2746.3,2746.0,0.525]
[1645953069822,1.9618,2746.3,2746.1,0.525]
[1645953070022,1.9812,2746.7,2746.1,0.525]
[1645953070227,1.11073048,2746.2,2746.1,0.525]
[1645953071124,2.9037,2746.8,2746.1,0.525]
[1645953071325,1.5334924,2746.7,2746.1,0.525]
[1645953072133,2.9037,2746.8,2746.1,0.525]
[1645953072529,1.03457915,2746.3,2746.1,0.525]
[1645953077826,0.1456,2747.0,2746.1,0.525]
[1645953078031,8.0536,2747.1,2746.1,0.525]
[1645953078032,1.53664295,2746.9,2746.2,11.12]
[1645953078225,8.0536,2747.1,2746.3,0.525]
[1645953078427,1.53662974,2747.0,2746.3,11.7906]
[1645953078627,1.53662974,2747.0,2746.3,0.9706]
[1645953078827,1.53662974,2747.0,2746.3,1.9706]
[1645953079027,1.53662974,2747.0,2746.3,0.9706]
[1645953079327,1.53662974,2747.0,2746.3,12.8552]
[1645953079726,1.53662974,2747.0,2746.3,13.8552]
[1645953080569,1.53662974,2747.0,2746.3,1.825]
[1645953080769,1.53662974,2747.0,2746.3,0.825]
[1645953081477,1.14478042,2746.7,2746.3,0.825]
[1645953082772,1.14478042,2746.7,2746.3,0.525]
[1645953086826,2.028,2747.1,2746.4,11.12]
[1645953087024,2.028,2747.1,2746.6,11.12]
[1645953087228,2.028,2747.1,2746.7,0.525]
[1645953088069,1.14445421,2746.9,2746.7,0.525]
[1645953090171,1.14337776,2746.9,2746.7,0.525]
[1645953095137,1.14337776,2746.9,2746.7,0.523177]
[1645953096272,1.50767776,2746.9,2746.7,0.523177]
[1645953101218,1.14337776,2746.9,2746.7,0.523177]
[1645953111092,2.028,2747.1,2746.7,0.523177]
[1645953111288,2.028,2747.1,2746.7,0.823177]
[1645953114316,2.028,2747.1,2746.7,11.943177]
[1645953114716,2.028,2747.1,2746.7,12.943177]
[1645953114917,0.00096,2747.6,2746.8,0.18878506]
[1645953115117,1.53893884,2747.7,2747.0,11.12]
[1645953115327,0.8139,2748.0,2747.0,11.12]
[1645953115328,1.53797884,2747.6,2747.2,11.12]
[1645953115519,0.45056,2748.0,2747.3,0.525]
[1645953115729,1.53667733,2747.9,2747.3,0.525]
[1645953116517,1.53667733,2747.9,2747.3,11.645]
[1645953116720,1.53667733,2747.9,2747.3,12.85227502]
[1645953117327,1.53667733,2747.9,2747.3,16.19570221]
[1645953117522,0.00096,2748.1,2747.5,11.12]
[1645953117721,3.9894,2748.2,2747.6,11.645]
[1645953117722,2.0328,2748.2,2747.6,11.645]
[1645953118167,1.53087425,2748.1,2747.6,12.945]
[1645953118371,1.11034313,2748.0,2747.6,1.825]
[1645953118769,1.11034313,2748.0,2747.6,0.825]
[1645953119674,2.0328,2748.2,2747.6,0.9704]
[1645953120476,2.0328,2748.2,2747.6,0.825]
[1645953120674,2.0328,2748.2,2747.6,11.945]
[1645953121074,2.0328,2748.2,2747.6,12.945]
[1645953121718,2.0328,2748.2,2747.6,1.825]
[1645953121923,0.3643,2748.1,2747.6,1.525]
[1645953122124,5.5328,2748.2,2747.5,0.3]
[1645953122125,0.3643,2747.9,2747.5,0.3]
[1645953122327,3.8643,2747.8,2747.1,0.825]
[1645953122628,0.3643,2747.8,2747.1,0.525]
[1645953123025,3.50096,2748.1,2746.8,4.2002]
[1645953123026,1.61140711,2747.7,2746.8,4.2002]
[1645953123223,0.00096,2747.7,2746.8,0.525]
[1645953123430,0.1454,2748.0,2746.8,0.525]
[1645953123431,0.00096,2747.9,2746.8,0.525]
[1645953124226,1.04872122,2747.3,2746.8,0.825]
[1645953125481,0.00096,2747.9,2746.8,0.825]
[1645953125872,0.00096,2747.9,2746.9,14.62]
[1645953126076,0.00096,2747.9,2747.0,11.645]
[1645953126472,0.00096,2747.9,2747.2,18.20322532]
[1645953126673,0.00096,2748.1,2747.4,11.12]
[1645953126876,1.9885,2748.6,2747.6,11.12]
[1645953126877,0.00096,2748.5,2747.6,11.12]
[1645953127080,0.00096,2748.5,2747.7,0.525]
[1645953127477,1.4457313,2748.5,2747.7,0.525]
[1645953128777,1.4457313,2748.5,2747.7,4.025]
[1645953128983,1.4457313,2748.5,2747.7,1.525]
[1645953129229,1.4457313,2748.5,2747.7,0.525]
[1645953129427,0.00096,2748.5,2747.7,0.525]
[1645953129628,0.00096,2748.5,2747.8,3.5]
[1645953129828,2.35376,2748.6,2747.9,0.525]
[1645953130027,2.3528,2748.6,2747.9,0.525]
[1645953130233,1.9885,2748.6,2748.0,3.5]
[1645953130529,1.30970993,2748.6,2748.1,0.525]
[1645953130726,1.30970993,2748.6,2748.1,0.825]
[1645953134187,0.8885653,2748.7,2748.1,0.825]
[1645953134388,0.8876053,2748.7,2748.1,0.825]
[1645953136589,1.14902966,2748.4,2748.1,0.825]
[1645953137026,1.14902966,2748.4,2748.1,0.525]
[1645953137427,1.14902966,2748.4,2747.7,12.7904]
[1645953137627,1.14902966,2748.4,2747.7,12.945]
[1645953138227,1.51332966,2748.4,2747.7,1.525]
[1645953138730,1.51332966,2748.4,2747.7,0.525]
[1645953140330,1.14902966,2748.4,2747.7,0.525]
[1645953141983,1.06540013,2747.9,2747.7,0.525]
[1645953142986,1.06540013,2747.9,2747.1,0.1454]
[1645953143185,1.06540013,2747.9,2747.2,0.525]
[1645953143386,1.06540013,2747.9,2747.2,0.825]
[1645953143587,1.42970013,2747.9,2747.2,0.525]
[1645953146845,1.42970013,2747.9,2747.2,0.4263556]
[1645953148370,0.00096,2748.2,2747.2,0.7263556]
[1645953148569,1.52861788,2748.3,2747.4,11.12]
[1645953148769,1.52861788,2748.3,2747.5,4.025]
[1645953148770,0.00096,2748.3,2747.5,4.025]
[1645953149171,0.00096,2748.3,2747.5,5.025]
[1645953151175,2.86748098,2748.3,2747.5,1.525]
[1645953151474,0.00096,2748.3,2747.5,5.025]
[1645953151731,1.53036466,2748.3,2747.5,5.025]
[1645953154235,0.00096,2748.3,2747.5,5.025]
[1645953154444,5.0,2748.1,2747.1,1.47521628]
[1645953154637,5.5413671,2748.0,2746.8,0.1454]
[1645953154839,0.3643,2747.8,2746.8,0.1454]
[1645953155039,0.3643,2747.6,2746.8,0.1454]
[1645953155483,1.06131056,2747.0,2746.6,0.91050781]
[1645953155672,0.3643,2747.2,2746.6,0.91050781]
[1645953155869,0.3643,2747.2,2746.3,3.54989606]
[1645953155870,0.3643,2747.2,2746.4,0.81910781]
[1645953156878,1.42849207,2747.0,2746.4,0.81910781]
[1645953157079,0.3643,2747.2,2746.4,0.81910781]
[1645953157577,0.3643,2747.3,2746.4,0.81910781]
[1645953158078,3.8643,2747.3,2746.4,0.81910781]
[1645953158875,3.8643,2747.3,2746.4,0.36370781]
[1645953159075,0.3643,2747.3,2746.4,0.36370781]
[1645953159723,3.8643,2747.3,2746.4,0.36370781]
[1645953160121,1.18078177,2747.1,2746.4,0.36370781]
[1645953160422,0.3643,2747.3,2746.4,0.36370781]